fUST/lending_fUST_20240716
["ID","MTS","AMOUNT","RATE_DAILY","PERIOD"]
[332236213,1721062253005,-500.0,0.00021917,2]
[332236214,1721062253014,-500.0,0.00021917,2]
[332236215,1721062253025,-500.0,0.00021917,2]
[332236216,1721062253035,-500.0,0.00021917,2]
[332236217,1721062253044,-500.0,0.00021917,2]
[332236218,1721062253053,-500.0,0.00021917,2]
[332236219,1721062253063,-500.0,0.00021917,2]
[332236220,1721062253072,-500.0,0.00021917,2]
[332236221,1721062253081,-500.0,0.00021917,2]
[332236222,1721062253090,-500.0,0.00021917,2]
[332236223,1721062253099,-159.365809,0.00021918,2]
[332236224,1721062253108,-93417.10966335,0.00022465,2]
[332236225,1721062253120,-1664.14434575,0.00022465,2]
[332236226,1721062253221,-362.09369766,0.00021917,2]
[332236227,1721062352937,150.5,0.00022729,62]
[332236228,1721062353950,150.5,0.00022719,62]
[332236229,1721062354255,150.5,0.00022709,62]
[332236230,1721062729879,4434.04270183,0.00014999,2]
[332236231,1721062854124,292.48,0.00010959,2]
[332236232,1721062864690,243.73,0.00010959,2]
[332236233,1721062875453,203.11,0.00010959,2]
[332236234,1721062886044,169.26,0.00010959,2]
[332236235,1721062896594,846.3,0.00010959,2]
[332236236,1721062903273,9626.228118,0.00014998,2]
[332236237,1721062912869,523.26353364,0.00010959,2]
[332236238,1721062917787,5475.59920121,0.00014998,2]
[332236239,1721062920918,19420.30517703,0.00010959,2]
[332236240,1721062940729,9626.228118,0.00013283,2]
[332236241,1721062948294,2833.16446756,0.00015,2]
[332236242,1721062968033,250.0,0.0001,2]
[332236243,1721062971418,19404.82525925,0.00013283,2]
[332236244,1721062988897,375.07183976,0.00012121,2]
[332236245,1721062994267,24900.0,0.00015687,2]
[332236246,1721062999236,10595.39117734,0.00014998,2]
[332236247,1721063000288,5475.59920121,0.00012121,2]
[332236248,1721063003746,309.27334028,0.00014999,2]
[332236249,1721063011437,19412.56521814,0.00012121,2]
[332236250,1721063015812,50000.0,0.00025,120]
[332236251,1721063015840,43176.60513885,0.00025,120]
[332236252,1721063017153,1491.29218622,0.00012121,2]
[332236253,1721063021898,287.01556155,0.00014999,2]
[332236254,1721063043657,1869.0962312,0.00015252,2]
[332236255,1721063078941,205.80457715,0.00014999,2]
[332236256,1721063087815,160.19558571,0.00014999,2]
[332236257,1721063160269,10595.39117734,0.00014998,2]
[332236258,1721063165032,576.35561417,0.00014999,2]
[332236259,1721063179388,1636.98995052,0.00014999,2]
[332236273,1721063220152,232.1681743,0.00015247,2]
[332236274,1721063249259,9626.228118,0.00014998,2]
[332236275,1721063279818,1436.35994433,0.00014999,2]
[332236276,1721063281492,6991.8061198,0.00014998,2]
[332236277,1721063291886,169.781869,0.00015316,2]
[332236278,1721063292133,169.781869,0.0001543,2]
[332236279,1721063292350,169.781869,0.00015544,2]
[332236280,1721063292620,169.781869,0.00015658,2]
[332236281,1721063292870,169.781869,0.00015772,2]
[332236282,1721063293104,169.781869,0.00015886,2]
[332236283,1721063293358,169.781869,0.00016,2]
[332236284,1721063306784,-513.24931943,0.00016093,2]
[332236285,1721063306853,-244.94321357,0.00016093,2]
[332236286,1721063306882,-169.781869,0.00016114,2]
[332236287,1721063306912,-98.52423686,0.00016153,2]
[332236288,1721063323412,256.30105466,0.00014999,2]
[332236289,1721063324248,2488.59552003,0.00014999,2]
[332236290,1721063326527,154.98837154,0.00014999,2]
[332236291,1721063342202,2422.80787231,0.00015,2]
[332236292,1721063351641,187.58245065,0.00014999,2]
[332236294,1721063360399,168.27432711,0.00014999,2]
[332236295,1721063382548,155.34279108,0.00014999,2]
[332236296,1721063396828,188.8093477,0.00015225,2]
[332236297,1721063400265,210.81465367,0.00014999,2]
[332236299,1721063405869,156.30936896,0.00014999,2]
[332236300,1721063427899,274.03030541,0.00014999,2]
[332236414,1721063437972,-300.0,0.00016154,2]
[332236415,1721063437983,-300.0,0.00016154,2]
[332236416,1721063437994,-26.38129753,0.00016155,2]
[332236417,1721063438007,-7111.21402785,0.00016155,2]
[332236418,1721063438017,-500.0,0.00016244,2]
[332236420,1721063438027,-500.0,0.00016244,2]
[332236423,1721063438036,-500.0,0.00016244,2]
[332236425,1721063438046,-221.04999784,0.00016244,2]
[332236427,1721063438056,-420.47725625,0.00016244,2]
[332236430,1721063438066,-126779.710894,0.00016245,2]
[332236432,1721063438077,-500.0,0.00016254,2]
[332236434,1721063438087,-177.07897273,0.00016254,2]
[332236436,1721063438098,-500.0,0.00016254,2]
[332236438,1721063438109,-561.2397255,0.00016254,2]
[332236440,1721063438119,-500.0,0.00016254,2]
[332236442,1721063438129,-500.0,0.00016254,2]
[332236444,1721063438142,-500.0,0.00016254,2]
[332236446,1721063438152,-432.48741292,0.00016254,2]
[332236448,1721063438162,-500.0,0.00016254,2]
[332236450,1721063438172,-500.0,0.00016254,2]
[332236452,1721063438182,-500.0,0.00016254,2]
[332236454,1721063438192,-500.0,0.00016254,2]
[332236456,1721063438201,-417.67187937,0.00016254,2]
[332236458,1721063438211,-500.0,0.00016254,2]
[332236460,1721063438223,-500.0,0.00016254,2]
[332236461,1721063438232,-500.0,0.00016254,2]
[332236462,1721063438243,-500.0,0.00016254,2]
[332236463,1721063438255,-500.0,0.00016254,2]
[332236464,1721063438265,-500.0,0.00016254,2]
[332236466,1721063438275,-500.0,0.00016254,2]
[332236468,1721063438284,-500.0,0.00016254,2]
[332236469,1721063438294,-500.0,0.00016254,2]
[332236470,1721063438304,-500.0,0.00016254,2]
[332236471,1721063438315,-500.0,0.00016254,2]
[332236472,1721063438325,-500.0,0.00016254,2]
[332236473,1721063438334,-600.0,0.00016254,2]
[332236474,1721063438344,-57293.30810626,0.00016255,2]
[332236475,1721063438353,-42285.43342808,0.00016255,2]
[332236476,1721063438363,-16110.04450027,0.00016255,2]
[332236477,1721063438372,-17273.92009996,0.00016255,2]
[332236478,1721063438382,-155.56858064,0.00016255,2]
[332236479,1721063438392,-6991.8061198,0.00016255,2]
[332236480,1721063438401,-276.6002656,0.00016953,2]
[332236481,1721063438411,-7137.59532536,0.00017571,2]
[332236482,1721063438420,-420.0,0.00017659,2]
[332236483,1721063438430,-420.0,0.00017769,2]
[332236484,1721063438439,-63389.8554471,0.0001799,2]
[332236485,1721063438448,-24549.01898368,0.00018,2]
[332236486,1721063438458,-7137.59532536,0.00018986,2]
[332236487,1721063438468,-197.47648542,0.00019039,2]
[332236488,1721063438478,-813.97106147,0.00019039,3]
[332236489,1721063438488,-250.0,0.00019041,2]
[332236490,1721063438497,-511.666679,0.00019178,10]
[332236491,1721063438507,-163.001484,0.00019178,2]
[332236492,1721063438516,-163.429298,0.00019178,2]
[332236493,1721063438526,-587.0,0.00019304,2]
[332236494,1721063438535,-271.84889324,0.000195,2]
[332236495,1721063438700,-587.0,0.00019546,2]
[332236496,1721063438710,-9000.0,0.0002,2]
[332236497,1721063438722,-150.112233,0.0002,2]
[332236498,1721063438733,-150.112233,0.000202,2]
[332236499,1721063438742,-150.112233,0.000204,3]
[332236500,1721063438752,-7137.59532536,0.00020402,2]
[332236501,1721063438761,-150.112233,0.000207,3]
[332236502,1721063438771,-150.112233,0.000209,3]
[332236503,1721063438780,-285.0,0.00021,2]
[332236504,1721063438790,-689.16243128,0.00021042,2]
[332236505,1721063438800,-750.0,0.00021096,2]
[332236506,1721063438809,-150.112233,0.000211,2]
[332236507,1721063438819,-172.0,0.00021103,2]
[332236508,1721063438828,-4524.74025621,0.00021243,2]
[332236509,1721063438838,-150.112233,0.000213,4]
[332236510,1721063438847,-4524.74025621,0.00021482,2]
[332236511,1721063438856,-63389.8554471,0.00021499,3]
[332236512,1721063438866,-150.112233,0.000215,4]
[332236513,1721063438875,-823.0,0.00021501,2]
[332236514,1721063438885,-18027.48782447,0.00021736,5]
[332236515,1721063438894,-151.0,0.00021762,2]
[332236516,1721063438904,-151.0,0.00021762,2]
[332236517,1721063438913,-4524.74025621,0.00021793,2]
[332236518,1721063438922,-150.112233,0.000218,4]
[332236519,1721063438931,-7137.59532536,0.00021817,2]
[332236520,1721063438940,-345.2896725,0.00021817,2]
[332236521,1721063438949,-63389.8554471,0.00021907,3]
[332236522,1721063438959,-152.442106,0.00021907,2]
[332236523,1721063438970,-152.442106,0.00021907,2]
[332236524,1721063438979,-1066.73188738,0.00021917,2]
[332236525,1721063438988,-1424.78448955,0.00021917,2]
[332236526,1721063438997,-500.0,0.00021917,2]
[332236527,1721063439007,-500.0,0.00021917,2]
[332236528,1721063439016,-504.11692657,0.00021917,2]
[332236529,1721063439026,-500.0,0.00021917,2]
[332236530,1721063439036,-269.28592035,0.00021917,2]
[332236531,1721063439046,-500.0,0.00021917,2]
[332236532,1721063439055,-500.0,0.00021917,2]
[332236533,1721063439064,-500.0,0.00021917,2]
[332236534,1721063439073,-500.0,0.00021917,2]
[332236535,1721063439083,-500.0,0.00021917,2]
[332236536,1721063439092,-507.59354595,0.00021917,2]
[332236537,1721063439101,-500.0,0.00021917,2]
[332236538,1721063439110,-500.0,0.00021917,2]
[332236539,1721063439120,-500.0,0.00021917,2]
[332236540,1721063439129,-500.0,0.00021917,2]
[332236541,1721063439141,-466.6149137,0.00021917,2]
[332236542,1721063439151,-500.0,0.00021917,2]
[332236543,1721063439160,-500.0,0.00021917,2]
[332236544,1721063439169,-403.82288252,0.00021917,2]
[332236545,1721063439178,-500.0,0.00021917,2]
[332236546,1721063439188,-423.54145312,0.00021917,2]
[332236547,1721063439197,-500.0,0.00021917,2]
[332236548,1721063439207,-500.0,0.00021917,2]
[332236549,1721063439216,-500.0,0.00021917,2]
[332236550,1721063439225,-500.0,0.00021917,2]
[332236551,1721063439234,-500.0,0.00021917,2]
[332236552,1721063439243,-500.0,0.00021917,2]
[332236553,1721063439253,-500.0,0.00021917,2]
[332236554,1721063439263,-500.0,0.00021917,2]
[332236555,1721063439272,-500.0,0.00021917,2]
[332236556,1721063439282,-504.42264133,0.00021917,2]
[332236557,1721063439291,-169.0510315,0.00021917,2]
[332236558,1721063439300,-500.0,0.00021917,2]
[332236560,1721063439310,-500.0,0.00021917,2]
[332236562,1721063439320,-500.0,0.00021917,2]
[332236563,1721063439330,-500.0,0.00021917,2]
[332236564,1721063439339,-500.0,0.00021917,2]
[332236565,1721063439348,-500.0,0.00021917,2]
[332236566,1721063439357,-500.0,0.00021917,2]
[332236567,1721063439366,-500.0,0.00021917,2]
[332236569,1721063439376,-500.0,0.00021917,2]
[332236571,1721063439385,-500.0,0.00021917,2]
[332236573,1721063439395,-500.0,0.00021917,2]
[332236574,1721063439404,-500.0,0.00021917,2]
[332236575,1721063439413,-500.0,0.00021917,2]
[332236576,1721063439423,-500.0,0.00021917,2]
[332236578,1721063439432,-500.0,0.00021917,2]
[332236580,1721063439441,-500.0,0.00021917,2]
[332236582,1721063439451,-500.0,0.00021917,2]
[332236584,1721063439460,-500.0,0.00021917,2]
[332236585,1721063439469,-500.0,0.00021917,2]
[332236586,1721063439478,-500.0,0.00021917,2]
[332236587,1721063439487,-500.0,0.00021917,2]
[332236589,1721063439497,-500.0,0.00021917,2]
[332236591,1721063439506,-500.0,0.00021917,2]
[332236593,1721063439516,-500.0,0.00021917,2]
[332236594,1721063439525,-500.0,0.00021917,2]
[332236595,1721063439534,-500.0,0.00021917,2]
[332236596,1721063439544,-500.0,0.00021917,2]
[332236598,1721063439553,-298.00734706,0.00021917,2]
[332236600,1721063439562,-500.0,0.00021917,2]
[332236601,1721063439571,-500.0,0.00021917,2]
[332236602,1721063439580,-151.0,0.00021917,2]
[332236603,1721063439589,-500.0,0.00021917,2]
[332236604,1721063439598,-500.0,0.00021917,2]
[332236605,1721063439607,-154.097136,0.00021917,2]
[332236606,1721063439616,-500.0,0.00021917,2]
[332236607,1721063439625,-500.0,0.00021917,2]
[332236608,1721063439635,-500.0,0.00021917,2]
[332236609,1721063439644,-537.04100287,0.00021917,2]
[332236610,1721063439658,-500.0,0.00021917,2]
[332236611,1721063439668,-553.36513935,0.00021917,2]
[332236612,1721063439677,-500.0,0.00021917,2]
[332236613,1721063439686,-500.0,0.00021917,2]
[332236614,1721063439695,-500.0,0.00021917,2]
[332236615,1721063439705,-500.0,0.00021917,2]
[332236616,1721063439714,-500.0,0.00021917,2]
[332236618,1721063439723,-500.0,0.00021917,2]
[332236620,1721063439733,-500.0,0.00021917,2]
[332236622,1721063439743,-500.0,0.00021917,2]
[332236623,1721063439751,-500.0,0.00021917,2]
[332236625,1721063439760,-500.0,0.00021917,2]
[332236627,1721063439769,-500.0,0.00021917,2]
[332236628,1721063439778,-200.0,0.00021917,2]
[332236630,1721063439788,-500.0,0.00021917,2]
[332236632,1721063439797,-500.0,0.00021917,2]
[332236633,1721063439806,-500.0,0.00021917,2]
[332236634,1721063439815,-500.0,0.00021917,2]
[332236635,1721063439824,-500.0,0.00021917,2]
[332236636,1721063439833,-1500.0,0.00021917,2]
[332236638,1721063439842,-500.0,0.00021917,2]
[332236639,1721063439851,-500.0,0.00021917,2]
[332236640,1721063439860,-500.0,0.00021917,2]
[332236641,1721063439869,-500.0,0.00021917,2]
[332236642,1721063439878,-500.0,0.00021917,2]
[332236643,1721063439888,-500.0,0.00021917,2]
[332236644,1721063439898,-500.0,0.00021917,2]
[332236645,1721063439907,-500.0,0.00021917,2]
[332236646,1721063439916,-500.0,0.00021917,2]
[332236647,1721063439925,-500.0,0.00021917,2]
[332236648,1721063439935,-500.0,0.00021917,2]
[332236649,1721063439944,-504.37755116,0.00021917,2]
[332236650,1721063439953,-500.0,0.00021917,2]
[332236651,1721063439962,-500.0,0.00021917,2]
[332236652,1721063439972,-500.0,0.00021917,2]
[332236653,1721063439981,-500.0,0.00021917,2]
[332236654,1721063439990,-500.0,0.00021917,2]
[332236655,1721063440000,-500.0,0.00021917,2]
[332236657,1721063440010,-500.0,0.00021917,2]
[332236659,1721063440019,-500.0,0.00021917,2]
[332236661,1721063440029,-500.0,0.00021917,2]
[332236662,1721063440038,-500.0,0.00021917,2]
[332236663,1721063440049,-500.0,0.00021917,2]
[332236664,1721063440059,-500.0,0.00021917,2]
[332236666,1721063440068,-500.0,0.00021917,2]
[332236667,1721063440078,-500.0,0.00021917,2]
[332236668,1721063440097,-500.0,0.00021917,2]
[332236669,1721063440108,-500.0,0.00021917,2]
[332236670,1721063440118,-534.80602472,0.00021917,2]
[332236671,1721063440130,-500.0,0.00021917,2]
[332236672,1721063440141,-500.0,0.00021917,2]
[332236674,1721063440152,-500.0,0.00021917,2]
[332236676,1721063440162,-500.0,0.00021917,2]
[332236678,1721063440173,-500.0,0.00021917,2]
[332236680,1721063440182,-500.0,0.00021917,2]
[332236682,1721063440192,-500.0,0.00021917,2]
[332236684,1721063440203,-500.0,0.00021917,2]
[332236686,1721063440213,-500.0,0.00021917,2]
[332236688,1721063440223,-501.5832364,0.00021917,2]
[332236689,1721063440233,-500.0,0.00021917,2]
[332236691,1721063440243,-500.0,0.00021917,2]
[332236693,1721063440253,-500.0,0.00021917,2]
[332236694,1721063440263,-500.0,0.00021917,2]
[332236695,1721063440273,-500.0,0.00021917,2]
[332236696,1721063440283,-500.0,0.00021917,2]
[332236697,1721063440293,-500.0,0.00021917,2]
[332236698,1721063440303,-500.0,0.00021917,2]
[332236699,1721063440312,-500.0,0.00021917,2]
[332236700,1721063440322,-500.0,0.00021917,2]
[332236701,1721063440332,-500.0,0.00021917,2]
[332236702,1721063440341,-500.0,0.00021917,2]
[332236703,1721063440351,-500.0,0.00021917,2]
[332236704,1721063440360,-593.06653023,0.00021917,2]
[332236705,1721063440370,-500.0,0.00021917,2]
[332236706,1721063440380,-500.0,0.00021917,2]
[332236707,1721063440390,-501.32704017,0.00021917,2]
[332236708,1721063440399,-500.0,0.00021917,2]
[332236709,1721063440409,-503.54408335,0.00021917,2]
[332236710,1721063440419,-501.14957988,0.00021917,2]
[332236711,1721063440430,-500.0,0.00021917,2]
[332236712,1721063440440,-500.0,0.00021917,2]
[332236713,1721063440450,-500.0,0.00021917,2]
[332236714,1721063440460,-500.0,0.00021917,2]
[332236715,1721063440470,-500.0,0.00021917,2]
[332236716,1721063440480,-500.0,0.00021917,2]
[332236717,1721063440490,-500.0,0.00021917,2]
[332236718,1721063440502,-500.0,0.00021917,2]
[332236719,1721063440512,-500.0,0.00021917,2]
[332236720,1721063440522,-500.0,0.00021917,2]
[332236721,1721063440532,-500.0,0.00021917,2]
[332236722,1721063440542,-501.65727453,0.00021917,2]
[332236723,1721063440552,-500.0,0.00021917,2]
[332236724,1721063440561,-500.0,0.00021917,2]
[332236725,1721063440571,-500.0,0.00021917,2]
[332236726,1721063440581,-500.0,0.00021917,2]
[332236727,1721063440591,-500.0,0.00021917,2]
[332236728,1721063440601,-500.0,0.00021917,2]
[332236729,1721063440611,-626.90735684,0.00021917,2]
[332236730,1721063440622,-500.0,0.00021917,2]
[332236731,1721063440631,-500.0,0.00021917,2]
[332236732,1721063440642,-959.41,0.00021917,2]
[332236733,1721063440655,-600.21882274,0.00021917,2]
[332236734,1721063440665,-500.0,0.00021917,2]
[332236735,1721063440675,-509.205498,0.00021917,2]
[332236736,1721063440684,-500.0,0.00021917,2]
[332236737,1721063440695,-500.0,0.00021917,2]
[332236738,1721063440705,-500.0,0.00021917,2]
[332236739,1721063440715,-500.0,0.00021917,2]
[332236740,1721063440728,-500.0,0.00021917,2]
[332236741,1721063440738,-500.0,0.00021917,2]
[332236742,1721063440748,-500.0,0.00021917,2]
[332236743,1721063440758,-500.0,0.00021917,2]
[332236744,1721063440768,-500.0,0.00021917,2]
[332236745,1721063440777,-500.0,0.00021917,2]
[332236746,1721063440787,-500.0,0.00021917,2]
[332236747,1721063440796,-543.52447097,0.00021917,2]
[332236748,1721063440806,-500.0,0.00021917,2]
[332236749,1721063440815,-500.0,0.00021917,2]
[332236750,1721063440825,-500.0,0.00021917,2]
[332236751,1721063440835,-500.0,0.00021917,2]
[332236752,1721063440844,-500.0,0.00021917,2]
[332236753,1721063440854,-500.0,0.00021917,2]
[332236754,1721063440864,-500.0,0.00021917,2]
[332236755,1721063440874,-500.0,0.00021917,2]
[332236756,1721063440883,-500.0,0.00021917,2]
[332236757,1721063440894,-500.0,0.00021917,2]
[332236758,1721063440904,-500.0,0.00021917,2]
[332236759,1721063440914,-500.0,0.00021917,2]
[332236760,1721063440926,-447.15901852,0.00021917,2]
[332236761,1721063440935,-500.0,0.00021917,2]
[332236762,1721063440945,-500.0,0.00021917,2]
[332236763,1721063440954,-500.0,0.00021917,2]
[332236764,1721063440964,-574.51588336,0.00021917,2]
[332236765,1721063440974,-500.0,0.00021917,2]
[332236766,1721063440984,-500.0,0.00021917,2]
[332236767,1721063440994,-500.0,0.00021917,2]
[332236768,1721063441003,-500.0,0.00021917,2]
[332236769,1721063441013,-500.0,0.00021917,2]
[332236770,1721063441023,-500.0,0.00021917,2]
[332236771,1721063441032,-500.0,0.00021917,2]
[332236772,1721063441042,-500.0,0.00021917,2]
[332236773,1721063441052,-500.0,0.00021917,2]
[332236774,1721063441062,-500.0,0.00021917,2]
[332236775,1721063441072,-500.0,0.00021917,2]
[332236776,1721063441082,-500.0,0.00021917,2]
[332236777,1721063441093,-500.0,0.00021917,2]
[332236778,1721063441103,-500.0,0.00021917,2]
[332236779,1721063441113,-500.0,0.00021917,2]
[332236780,1721063441123,-500.0,0.00021917,2]
[332236781,1721063441133,-500.0,0.00021917,2]
[332236782,1721063441146,-500.0,0.00021917,2]
[332236783,1721063441156,-500.0,0.00021917,2]
[332236784,1721063441166,-500.0,0.00021917,2]
[332236785,1721063441176,-500.0,0.00021917,2]
[332236786,1721063441185,-500.0,0.00021917,2]
[332236787,1721063441195,-500.0,0.00021917,2]
[332236788,1721063441205,-500.0,0.00021917,2]
[332236789,1721063441215,-500.0,0.00021917,2]
[332236790,1721063441226,-152.442106,0.00021917,2]
[332236791,1721063441235,-152.442106,0.00021917,2]
[332236792,1721063441246,-500.0,0.00021917,2]
[332236793,1721063441256,-500.0,0.00021917,2]
[332236794,1721063441267,-500.0,0.00021917,2]
[332236795,1721063441277,-550.09,0.00021917,2]
[332236796,1721063441287,-152.442106,0.00021917,2]
[332236797,1721063441297,-152.442106,0.00021917,2]
[332236798,1721063441447,-504.24252403,0.00021917,2]
[332236799,1721063441458,-500.0,0.00021917,2]
[332236800,1721063441473,-500.0,0.00021917,2]
[332236801,1721063441482,-500.0,0.00021917,2]
[332236802,1721063441492,-500.0,0.00021917,2]
[332236803,1721063441501,-500.0,0.00021917,2]
[332236804,1721063441510,-500.0,0.00021917,2]
[332236805,1721063441520,-500.0,0.00021917,2]
[332236806,1721063441530,-500.0,0.00021917,2]
[332236807,1721063441540,-500.0,0.00021917,2]
[332236808,1721063441549,-500.0,0.00021917,2]
[332236809,1721063441559,-637.14464095,0.00021917,2]
[332236810,1721063441568,-500.0,0.00021917,2]
[332236811,1721063441578,-500.0,0.00021917,2]
[332236812,1721063441587,-500.0,0.00021917,2]
[332236813,1721063441596,-500.0,0.00021917,2]
[332236814,1721063441605,-724.41,0.00021917,2]
[332236815,1721063441614,-500.0,0.00021917,2]
[332236816,1721063441623,-500.0,0.00021917,2]
[332236817,1721063441633,-500.0,0.00021917,2]
[332236818,1721063441644,-500.0,0.00021917,2]
[332236819,1721063441656,-500.0,0.00021917,2]
[332236820,1721063441666,-781.34,0.00021917,2]
[332236821,1721063441675,-500.0,0.00021917,2]
[332236822,1721063441684,-500.0,0.00021917,2]
[332236823,1721063441694,-500.0,0.00021917,2]
[332236824,1721063441703,-513.5961627,0.00021917,2]
[332236825,1721063441711,-500.0,0.00021917,2]
[332236826,1721063441720,-502.33441454,0.00021917,2]
[332236827,1721063441731,-500.0,0.00021917,2]
[332236828,1721063441741,-500.0,0.00021917,2]
[332236829,1721063441749,-500.0,0.00021917,2]
[332236830,1721063441759,-500.0,0.00021917,2]
[332236831,1721063441768,-500.0,0.00021917,2]
[332236832,1721063441777,-500.0,0.00021917,2]
[332236833,1721063441786,-500.0,0.00021917,2]
[332236834,1721063441795,-500.0,0.00021917,2]
[332236835,1721063441804,-500.0,0.00021917,2]
[332236836,1721063441814,-500.0,0.00021917,2]
[332236837,1721063441823,-553.52457693,0.00021917,2]
[332236838,1721063441831,-500.0,0.00021917,2]
[332236839,1721063441841,-500.0,0.00021917,2]
[332236840,1721063441850,-500.0,0.00021917,2]
[332236841,1721063441859,-500.0,0.00021917,2]
[332236842,1721063441868,-500.0,0.00021917,2]
[332236843,1721063441877,-500.0,0.00021917,2]
[332236844,1721063441887,-500.0,0.00021917,2]
[332236845,1721063441897,-184.05875203,0.00021917,2]
[332236846,1721063441906,-500.0,0.00021917,2]
[332236847,1721063441916,-500.0,0.00021917,2]
[332236848,1721063441928,-500.0,0.00021917,2]
[332236849,1721063441937,-502.35467108,0.00021917,2]
[332236850,1721063441947,-500.0,0.00021917,2]
[332236851,1721063441960,-500.0,0.00021917,2]
[332236852,1721063441969,-500.0,0.00021917,2]
[332236853,1721063441978,-500.0,0.00021917,2]
[332236854,1721063441986,-502.01403287,0.00021917,2]
[332236855,1721063441996,-501.536391,0.00021917,2]
[332236856,1721063442005,-500.0,0.00021917,2]
[332236857,1721063442014,-493.80683639,0.00021917,2]
[332236858,1721063442023,-500.0,0.00021917,2]
[332236859,1721063442032,-500.0,0.00021917,2]
[332236860,1721063442041,-500.0,0.00021917,2]
[332236861,1721063442051,-500.0,0.00021917,2]
[332236862,1721063442061,-500.0,0.00021917,2]
[332236863,1721063442070,-500.0,0.00021917,2]
[332236864,1721063442079,-556.0,0.00021917,2]
[332236865,1721063442089,-500.0,0.00021917,2]
[332236866,1721063442098,-500.0,0.00021917,2]
[332236867,1721063442107,-500.0,0.00021917,2]
[332236868,1721063442116,-500.0,0.00021917,2]
[332236869,1721063442125,-737.82,0.00021917,2]
[332236870,1721063442134,-500.0,0.00021917,2]
[332236871,1721063442144,-500.0,0.00021917,2]
[332236872,1721063442154,-500.0,0.00021917,2]
[332236873,1721063442163,-500.0,0.00021917,2]
[332236874,1721063442172,-792.45,0.00021917,2]
[332236875,1721063442181,-500.0,0.00021917,2]
[332236876,1721063442191,-500.0,0.00021917,2]
[332236877,1721063442200,-500.0,0.00021917,2]
[332236878,1721063442210,-500.0,0.00021917,2]
[332236879,1721063442219,-500.0,0.00021917,2]
[332236880,1721063442228,-500.0,0.00021917,2]
[332236881,1721063442237,-500.0,0.00021917,2]
[332236882,1721063442247,-513.98729706,0.00021917,2]
[332236883,1721063442257,-500.0,0.00021917,2]
[332236884,1721063442266,-500.0,0.00021917,2]
[332236885,1721063442276,-500.0,0.00021917,2]
[332236886,1721063442285,-500.0,0.00021917,2]
[332236887,1721063442294,-512.04375983,0.00021917,2]
[332236889,1721063442304,-500.0,0.00021917,2]
[332236890,1721063442313,-500.0,0.00021917,2]
[332236891,1721063442322,-500.0,0.00021917,2]
[332236892,1721063442331,-500.0,0.00021917,2]
[332236893,1721063442340,-500.0,0.00021917,2]
[332236894,1721063442350,-500.0,0.00021917,2]
[332236895,1721063442359,-500.0,0.00021917,2]
[332236896,1721063442368,-500.0,0.00021917,2]
[332236897,1721063442377,-313.35667661,0.00021917,2]
[332236898,1721063442387,-500.0,0.00021917,2]
[332236899,1721063442402,-500.0,0.00021917,2]
[332236900,1721063442411,-500.0,0.00021917,2]
[332236902,1721063442420,-500.0,0.00021917,2]